[Event "DFMM-LV 2023"]
[Site "Braunfels"]
[Date "2023.06.10"]
[Round "4.8"]
[White "Kopylov, Diana"]
[Black "Sereda, Yaroslava"]
[Result "0-1"]
[Annotator "TA"]
[ECO "D35"]
[WhiteElo "1390"]
[BlackElo "1913"]
[PlyCount "100"]
[EventDate "2023.06.09"]
[EventType "team-tourn"]
[EventCountry "GER"]
[SourceTitle "playchess.com"]
[Source "ChessBase"]
[SourceQuality "1"]
[TimeControl "40/5400+30:1800+30"]

{[%evp 15,99,17,33,-63,-62,-172,-173,-168,-172,-170,-163,-164,-131,-130,-137,-131,-120,-160,-165,-257,-267,-268,-237,-241,-222,-208,-183,-185,-202,-200,-103,-173,-160,-135,0,0,0,-170,0,-137,-159,-135,-105,-112,-123,-126,-93,-524,-514,-491,-491,-485,-466,-1252,-1248,-1149,-666,-1022,-983,-2581,-2302,-29992,-636,-687,-564,-4141,-303,-4133,-4133,-4694,-1938,-29990,-29991,-29991,-29992,-29992,-29987,-29993,-29988,-29988,-29983,-29983,-29984,-29984,-29985,-29999]} 1. d4 {[%emt 0:00:03]} d5 {[%emt 0:00:08]} 2. c4 {[%emt 0:00:05]} e6 {[%emt 0:00:05]} 3. cxd5 {[%emt 0:00:05]} exd5 {[%emt 0:00:09]} 4. Nc3 {[%emt 0:00:07]} Nf6 {[%emt 0:00:17]} 5. Bg5 {[%emt 0:00:07]} Be7 {[%emt 0:00:24]} 6. e3 {[%emt 0:00:13]} O-O {[%emt 0:01:58]} 7. Bd3 {[%emt 0:00:07]} h6 {[%emt 0:01:39]} 8. Bf4 {[%emt 0:00:26]} c5 {[%emt 0:07:02][%cal Bc7c5,Bc5c4][%mdl 32] [#]} 9. Qc2 $146 {[%emt 0:04:28] D35: Queen's Gambit Declined: Exchange Variation.} (9. Nge2 $14) ({Predecessor:} 9. h3 Nc6 10. Nf3 cxd4 11. exd4 Bd6 12. Bxd6 Qxd6 13. O-O Re8 14. Qb3 Qb4 15. Nxd5 Nxd5 16. Qxd5 Qxb2 {1-0 Bluebaum,M (2660)-Motylev,A (2641) Titled Tuesday intern op 29th Sept blitz 2020 (4)}) 9... Nc6 $15 {[%emt 0:12:42][%cal Bb8c6,Bc6b4,Bb4d3][%mdl 32]} 10. Nge2 {[%emt 0:09:04]} (10. Nf3 $15) 10... c4 $19 {[%emt 0:16:54] White must now prevent ...Nb4.} 11. Bf5 {[%emt 0:08:10] [#] Black is clearly better.} Nb4 $1 {[%emt 0:04:26]} 12. Qb1 {[%emt 0:01:30]} Bxf5 {[%emt 0:03:29]} 13. Qxf5 {[%emt 0:00:35]} g6 {[%emt 0:04:06]} 14. Qb1 {[%emt 0:14:46]} Nd3+ {[%emt 0:01:23]} 15. Kf1 {[%emt 0:09:37]} Kg7 {[%emt 0:07:53][%cal Ob7b5] Black is much more active. The white rooks are badly placed.} 16. b3 {[%emt 0:08:18] Prevents b5.} b5 {[%emt 0:03:46][%cal Bb7b5,Bb5b4][%mdl 32]} 17. h3 {[%emt 0:03:06]} (17. Bg3 $142) 17... b4 {[%emt 0:04:18]} 18. Nd1 {[%emt 0:04:08]} Rc8 {[%emt 0:08:31]} 19. f3 {[%emt 0:02:23]} Qb6 {[%emt 0:02:00]} 20. g4 {[%emt 0:03:07]} Ne8 {[%emt 0:01:54]} 21. Nf2 {[%emt 0:04:39]} Nxf4 {[%emt 0:02:50]} 22. Nxf4 {[%emt 0:00:28]} Qb5 {[%emt 0:01:01]} (22... Nc7 $19 {...Bg5 would be deadly.} 23. h4 Bd6) 23. Kg2 {[%emt 0:00:51]} (23. h4 $17) 23... Bg5 {[%emt 0:04:43]} 24. h4 {[%emt 0:05:51]} Bf6 {[%emt 0:08:17]} ({Black should play} 24... Bxf4 $17 25. exf4 c3) 25. h5 {[%emt 0:05:22][%cal Rh5g6]} g5 {[%emt 0:00:33][%cal Bg6g5,Bg5f4,Bf4e3][%mdl 32]} 26. Qf5 {[%emt 0:01:21]} (26. bxc4 $11 {and White has nothing to worry.} Rxc4 27. Ne6+ fxe6 28. Qg6+ Kh8 29. Qxh6+ Kg8 30. Qg6+ Kh8 31. Qh6+ Kg8 32. Qg6+ Kh8 33. Qh6+) 26... Nd6 $2 {[%emt 0:01:30]} (26... gxf4 $19 27. Qxc8 fxe3 28. bxc4 Qa4 29. cxd5 exf2) 27. Qxd5 {[%emt 0:00:41]} (27. Ne6+ $1 $11 fxe6 28. Qg6+ Kh8 29. Qxh6+ Kg8 30. Qg6+ Kh8 31. Qh6+ Kg8 32. Qg6+ Kh8 33. Qh6+) 27... gxf4 $17 {[%emt 0:00:16]} 28. Qxd6 {[%emt 0:01:33]} fxe3 {[%emt 0:00:10]} ({Stronger than} 28... cxb3 29. axb3 (29. exf4 $2 Rfd8 $19 {[%mdl 64] Skewer}) 29... fxe3 30. Ne4 (30. Ra6 Bg5 $17) 30... Rc2+ 31. Kh3 $15) 29. Ne4 {[%emt 0:00:38]} Rc6 {[%emt 0:00:37] Really sharp!} 30. Qf4 {[%emt 0:04:32]} ({Wrong is} 30. a4 $2 bxa3 31. Qxa3 cxb3 $19) 30... Bxd4 {[%emt 0:01:27]} 31. Nd6 $2 {[%emt 0:00:49][%mdl 8192] White does not recover from this.} (31. bxc4 $17 {is more resistant.} Qxc4 32. Rhc1) 31... Rxd6 $1 $19 {[%emt 0:00:38]} 32. Qxd6 {[%emt 0:00:07]} Bxa1 {[%emt 0:00:07]} 33. Rxa1 {[%emt 0:00:27]} cxb3 {[%emt 0:00:34][%mdl 4096] Endgame KQR-KQR} 34. Qd4+ {[%emt 0:01:27]} (34. axb3 $142 Qe2+ {[%mdl 64] Deflection} 35. Kh3 Qxf3+ 36. Qg3) 34... Kg8 {[%emt 0:00:38]} 35. Qxe3 {[%emt 0:00:30]} b2 {[%emt 0:00:44]} 36. Rb1 {[%emt 0:00:52]} Re8 {[%emt 0:00:30]} 37. Qxh6 {[%emt 0:02:08]} Re2+ {[%emt 0:00:22]} 38. Kh3 {[%emt 0:01:59]} Qd5 {[%emt 0:00:42]} (38... Qe5 $142 39. Rh1 b1=Q {[%mdl 64] Discovered Attack, Double Attack} 40. Qg5+ Kh7 41. Qf5+ Qexf5 42. gxf5 Qxh1+ 43. Kg4 Qg1+ 44. Kf4 Kh6 45. f6 Qg5#) 39. Qf6 {[%emt 0:02:33]} Qd2 {[%emt 0:00:35]} (39... Qxa2 {is a self mate.} 40. h6 Kf8 41. h7) 40. h6 {[%emt 0:02:36][%csl Gh6][%cal Rf6g7]} Rh2+ {[%emt 0:00:24][%mdl 64] Skewer} 41. Kg3 {[%emt 0:30:11][%csl Gh6][%cal Rf6g7]} Rxh6 {[%emt 0:03:10][%csl Gh6][%cal Rd2h2]} 42. Qxb2 {[%emt 0:00:00]} Qd6+ {[%emt 0:00:31]} 43. f4 {[%emt 0:00:00]} Qd3+ {[%emt 0:00:16] Black mates.} 44. Kg2 {[%emt 0:00:00]} Qe4+ {[%emt 0:02:28]} 45. Kg3 {[%emt 0:00:00]} Qe3+ {[%emt 0:00:34][%mdl 64] Deflection} 46. Kg2 {[%emt 0:00:00]} Qxf4 {[%emt 0:01:24]} 47. Kg1 {[%emt 0:00:00]} Qf3 {[%emt 0:05:09][%csl Gf3][%cal Rh6h1]} 48. Qg2 {[%emt 0:00:00]} Qe3+ {[%emt 0:00:11]} 49. Qf2 {[%emt 0:00:00] [#]} Rh1+ $3 {[%emt 0:00:15][%mdl 576] Skewer} 50. Kg2 {[%emt 0:00:00]} (50. Kxh1 Qxf2) 50... Qh3# {[%emt 0:00:26] Ingenious play by Sereda!   Weighted Error Value: White=1.43/Black=0.37} 0-1

[Event "DFMM-LV 2023"]
[Site "Braunfels"]
[Date "2023.06.10"]
[Round "4.9"]
[White "Birkholz, Olga"]
[Black "Li, Zhuoling"]
[Result "0-1"]
[Annotator "TA"]
[ECO "A45"]
[WhiteElo "2005"]
[BlackElo "2216"]
[PlyCount "110"]
[EventDate "2023.06.09"]
[EventType "team-tourn"]
[EventCountry "GER"]
[SourceTitle "playchess.com"]
[Source "ChessBase"]
[SourceQuality "1"]
[TimeControl "40/5400+30:1800+30"]

{[%evp 9,110,0,0,3,-1,-52,-51,-43,-43,-40,-45,-42,-51,-52,-33,-51,-52,-85,-59,-58,-41,-33,0,-6,0,-7,-12,-47,-27,-48,-36,-63,-34,-48,-43,-75,-46,-86,-42,-69,-47,-75,-68,-96,-58,-84,-82,-82,-97,-90,-88,-91,0,0,0,0,0,0,0,-7,0,0,0,0,0,0,0,-8,-9,-8,-8,-8,0,0,0,0,0,0,0,0,0,0,0,0,0,0,0,0,0,0,0,0,0,-385,-385,-29973,-29974,-29973,-29972,-29973,-29974,-5658,-6066]} 1. d4 {[%emt 0:00:05]} Nf6 {[%emt 0:00:06]} 2. Bf4 {[%emt 0:00:05]} g6 {[%emt 0:01:23]} 3. e3 {[%emt 0:00:36]} Bg7 {[%emt 0:00:08]} 4. c3 {[%emt 0:00:23]} O-O {[%emt 0:00:50]} 5. Nd2 {[%emt 0:00:13]} d6 {[%emt 0:00:36][%cal Oe7e5]} 6. Be2 {[%emt 0:01:54] A45: Trompowsky Attack.} Nbd7 {[%emt 0:07:59]} 7. g4 {[%emt 0:03:04] [#]} ({Better is} 7. Ngf3 $11) 7... c5 $146 {[%emt 0:05:06]} ({Predecessor:} 7... e5 8. Bg3 Re8 9. h4 exd4 10. cxd4 Nb6 11. h5 g5 12. h6 Bh8 13. Nh3 Ne4 14. Nxe4 Rxe4 {1-0 Cassens,E (1829)-Ptitsyn,V (1666) Hamburg-ch Seniors 23rd 2016 (3)}) 8. g5 {[%emt 0:06:23] Black is slightly better.} Nd5 {[%emt 0:01:27]} 9. Bg3 {[%emt 0:00:12]} cxd4 {[%emt 0:02:17]} 10. cxd4 {[%emt 0:04:37]} e5 {[%emt 0:02:36]} 11. Ngf3 {[%emt 0:01:54]} exd4 {[%emt 0:06:51]} 12. exd4 {[%emt 0:00:32]} (12. Bxd6 dxe3 13. Nc4 Bxb2 14. Nxb2 exf2+ 15. Kxf2 Qb6+ 16. Qd4 Qxd6 $17) 12... N7b6 {[%emt 0:02:05]} 13. h4 {[%emt 0:04:37]} Bg4 {[%emt 0:02:43]} 14. O-O {[%emt 0:04:02]} Re8 {[%emt 0:10:04] Prevents Ne4.} 15. Re1 {[%emt 0:01:34]} Qd7 {[%emt 0:04:04]} 16. Qb3 {[%emt 0:01:14]} Nc7 {[%emt 0:11:16]} 17. a4 {[%emt 0:04:05]} Rad8 {[%emt 0:09:07]} 18. a5 {[%emt 0:09:16]} Be6 $1 {[%emt 0:00:16]} 19. Qa3 {[%emt 0:02:30]} Nc8 {[%emt 0:00:31]} 20. Rac1 {[%emt 0:03:37][%cal Oh4h5]} Bd5 {[%emt 0:01:44]} 21. Kh2 {[%emt 0:02:56]} a6 {[%emt 0:02:54]} 22. Qc3 {[%emt 0:04:55]} Ne6 {[%emt 0:01:28]} 23. Bf1 {[%emt 0:06:28]} Ne7 {[%emt 0:01:24]} 24. Bh3 {[%emt 0:03:47]} Rc8 {[%emt 0:02:24]} 25. Qa3 {[%emt 0:01:10]} Rxc1 {[%emt 0:03:57]} (25... Bxd4 $2 26. Rxc8 (26. Qxd6 $2 Qxd6 27. Bxd6 Bxf2 $17) 26... Qxc8 27. Nxd4 $18 (27. Qxd6 Bxb2 28. Ne5 Bxe5 $11)) 26. Rxc1 {[%emt 0:00:01]} Nc6 {[%emt 0:00:07]} (26... Bxd4 $2 27. Nxd4 (27. Qxd6 Qxd6 28. Bxd6 Bxf2 $17) 27... Rd8 28. Nc4 Bxc4 29. Rxc4 $18) 27. Bxd6 {[%emt 0:11:47]} Ncxd4 {[%emt 0:00:39]} 28. Nxd4 {[%emt 0:02:41]} Bxd4 {[%emt 0:00:05]} 29. Bg3 {[%emt 0:00:08]} Qb5 {[%emt 0:02:00] Inhibits Nc4.} 30. Qd6 {[%emt 0:09:04] [#]} Rd8 {[%emt 0:07:27] Black is more active.} ({But not} 30... Qxa5 $6 31. Bxe6 fxe6 32. Nb3 $11) (30... Qxb2 $2 31. Qxd5 Bxf2 32. Bxe6 Bxg3+ 33. Kxg3 $18) ({Don't play} 30... Bxb2 $6 31. Rb1 $11) (30... Bg7 $1 $17 {White must now prevent ...Bc6.} 31. Bxe6 Bxe6) 31. Qe7 $11 {[%emt 0:07:40] aiming for Bxe6.} Qd7 {[%emt 0:00:13]} (31... Bxb2 $2 32. Bxe6 Qe8 33. Qxe8+ Rxe8 34. Rc2 (34. Bxd5 Bxc1 35. Nb3 Ba3 $18) 34... Rxe6 35. Rxb2 $18) 32. Qxd7 {[%emt 0:00:30]} Rxd7 {[%emt 0:00:02]} 33. Rc8+ {[%emt 0:00:07]} Kg7 {[%emt 0:00:13][%cal Of7f5]} 34. b3 {[%emt 0:00:52]} h6 {[%emt 0:01:43]} 35. Nc4 {[%emt 0:02:04] Threatens to win with Nb6.} hxg5 {[%emt 0:02:06]} 36. hxg5 {[%emt 0:00:02] Hoping for Nb6.} f5 {[%emt 0:03:51]} 37. gxf6+ {[%emt 0:00:22]} Kxf6 {[%emt 0:00:10] And now ...Rh7 would win.} 38. Kg1 {[%emt 0:02:35]} Rh7 {[%emt 0:00:10]} 39. Bg2 {[%emt 0:00:12]} Bxg2 {[%emt 0:03:18]} 40. Kxg2 {[%emt 0:00:01]} Rh5 {[%emt 0:00:52]} 41. Nd6 {[%emt 0:09:51] Against Rb5} Rxa5 {[%emt 0:01:23]} 42. Nxb7 {[%emt 0:00:01]} Rb5 {[%emt 0:00:49][%csl LRb3,LRb7]} 43. Nd8 {[%emt 0:00:20]} Nxd8 {[%emt 0:07:50]} 44. Rxd8 {[%emt 0:00:03][%mdl 4096] Endgame KRB-KRB} Bb6 {[%emt 0:00:10]} 45. Rd3 {[%emt 0:04:34]} Kf5 {[%emt 0:01:02]} 46. Kf3 {[%emt 0:00:25]} g5 {[%emt 0:00:27]} 47. Ke2 {[%emt 0:01:28]} Ra5 {[%emt 0:04:12]} 48. f3 {[%emt 0:01:59]} Rb5 {[%emt 0:04:12]} 49. Kd1 {[%emt 0:02:10]} Ba5 {[%emt 0:01:55]} 50. Ke2 {[%emt 0:00:32]} Rc5 {[%emt 0:01:21]} 51. Rd6 $2 {[%emt 0:01:12][%mdl 8192]} (51. Bd6 $11 Rb5 52. Bf8) 51... Bc7 $19 {[%emt 0:00:55]} 52. Kf2 $2 {[%emt 0:03:31] [#]} (52. Rxa6 $19 Bxg3 53. Kd3) 52... Bxd6 {[%emt 0:01:33]} 53. Bxd6 {[%emt 0:00:07]} Rc2+ {[%emt 0:00:15]} 54. Kg3 {[%emt 0:01:14]} Rc3 {[%emt 0:00:08]} 55. b4 {[%emt 0:00:01]} g4 {[%emt 0:00:07] Weighted Error Value: White=0.30/Black=0.09 (flawless) .  Loses game:     	White=1     	---        Missed win:     	---       	---        Mistake:       	White=2     	Black=1      Inaccurate:     	White=8     	Black=6      OK:         	White=23    	Black=16     Best:        	White=1     	Black=2      Strong:       	---       	Black=1      Brilliant:      	---       	---} 0-1

[Event "DFMM-LV 2023"]
[Site "Braunfels"]
[Date "2023.06.10"]
[Round "4.10"]
[White "Meier, Annemarie"]
[Black "Stangl, Anita"]
[Result "1/2-1/2"]
[Annotator "TA"]
[ECO "A84"]
[WhiteElo "2258"]
[BlackElo "2009"]
[PlyCount "68"]
[EventDate "2023.06.09"]
[EventType "team-tourn"]
[EventCountry "GER"]
[SourceTitle "playchess.com"]
[Source "ChessBase"]
[SourceQuality "1"]
[TimeControl "40/5400+30:1800+30"]

{[%evp 17,68,25,28,33,52,48,58,51,51,54,57,6,59,46,66,68,92,64,77,-16,60,54,81,50,78,70,75,54,106,13,11,0,19,-79,-16,-142,0,-333,-167,-189,-14,-148,-70,-252,-241,-237,-68,-229,0,0,0,0,0]} 1. d4 {[%emt 0:00:04]} e6 {[%emt 0:00:03]} 2. c4 {[%emt 0:00:09]} d5 {[%emt 0:00:04]} 3. Nf3 {[%emt 0:00:11]} c6 {[%emt 0:00:12]} 4. e3 {[%emt 0:00:12]} Bd6 {[%emt 0:01:25]} 5. Bd3 {[%emt 0:00:35]} f5 {[%emt 0:02:23]} 6. O-O {[%emt 0:00:26]} Nf6 {[%emt 0:00:13]} 7. b3 {[%emt 0:00:23]} O-O {[%emt 0:02:41]} 8. Ba3 {[%emt 0:00:30]} Ne4 {[%emt 0:00:46]} 9. Bxd6 {[%emt 0:03:53]} Qxd6 {[%emt 0:01:48]} 10. Qc2 {[%emt 0:05:50] A84: Dutch Defence: 2 c4 Miscellaneous.} Nd7 {[%emt 0:02:50]} 11. Nc3 {[%emt 0:03:14]} Rf6 {[%emt 0:00:50]} 12. Ne2 {[%emt 0:06:10] White is slightly better.} Rh6 {[%emt 0:03:19][%cal Oe4g5]} 13. g3 {[%emt 0:02:00] [#]} Qe7 $146 {[%emt 0:01:12]} ({Predecessor:} 13... a5 14. a3 b6 15. Rfc1 Bb7 16. b4 Kf7 17. c5 bxc5 18. bxc5 Qc7 19. Rab1 Kf6 {1-0 Strutinskaya,G (2317)-Kuznetsova,L (2045) EU-ch Seniors rap (Women) rapid 2013 (8)}) 14. Ne1 {[%emt 0:06:31]} (14. h4 $14) 14... Qf7 {[%emt 0:13:18]} ({Black should try} 14... Ndf6 $11) 15. f3 {[%emt 0:08:51]} Nef6 {[%emt 0:06:52]} (15... Qh5 $2 16. Nf4 (16. fxe4 $2 Qxh2#) 16... Qf7 17. cxd5 exd5 18. fxe4 $18) 16. Ng2 {[%emt 0:04:31][%cal Og3g4]} g5 {[%emt 0:01:53]} 17. h4 {[%emt 0:07:33]} gxh4 {[%emt 0:06:26]} 18. gxh4 {[%emt 0:01:08]} (18. Nxh4 $16 Kh8 19. Kg2) 18... Nf8 {[%emt 0:01:00]} (18... Kh8 $11) 19. Kf2 $14 {[%emt 0:02:56]} Bd7 {[%emt 0:03:16]} 20. Rh1 {[%emt 0:00:45]} Ng6 {[%emt 0:02:41]} 21. Rag1 {[%emt 0:01:06]} Nh5 {[%emt 0:06:32]} 22. Qd2 {[%emt 0:06:07]} Qf8 {[%emt 0:06:04]} (22... dxc4 $14 23. bxc4 (23. Bxc4 Kh8 $14) 23... Kh8) 23. Ke1 {[%emt 0:01:38]} (23. Nef4 $16 {Nxh5 would be deadly.} Ngxf4 24. Nxf4+ Kh8 25. Nxh5 Rxh5 26. f4) 23... Kh8 {[%emt 0:04:25]} 24. Kd1 {[%emt 0:02:25]} e5 {[%emt 0:04:01]} 25. Rf1 {[%emt 0:07:00] [#]} (25. cxd5 $11 cxd5 26. dxe5 Nxe5 27. Ne1 (27. Ngf4 Nxf3 28. Qc3+ Qf6 $17)) 25... Re8 {[%emt 0:05:07]} (25... dxc4 $1 $17 26. Bxc4 f4) 26. e4 {[%emt 0:02:36]} (26. cxd5 $11 cxd5 27. Rhg1) 26... exd4 {[%emt 0:02:21]} (26... dxc4 $17 27. Bxc4 b5) 27. exf5 $2 {[%emt 0:00:52][%mdl 8192]} (27. exd5 $11 {and White stays safe.} c5 28. Rf2) 27... Ne5 {[%emt 0:00:42]} (27... dxc4 $142 28. Bxc4 (28. bxc4 $2 Ne5 $19) 28... Ne5) 28. cxd5 $19 {[%emt 0:01:59]} cxd5 $2 {[%emt 0:00:59]} (28... Nxd3 $19 29. Qxd3 c5) 29. Ngf4 {[%emt 0:01:45]} (29. Rf2 $1 $11) 29... Bxf5 {[%emt 0:05:53]} (29... Nxf4 $17 30. Nxf4 Rc6) 30. Bxf5 {[%emt 0:02:52]} ({Only move:} 30. Bb5 $1 $15 Nxf4 31. Qxf4) 30... Qxf5 {[%emt 0:01:09]} 31. Nxh5 {[%emt 0:01:04] [#]} Rxh5 {[%emt 0:03:59]} ({Worse is} 31... Qxh5 32. Nxd4 Rf6 33. Kc1 $11) (31... Qb1+ 32. Qc1 Qxa2 33. Nxd4 (33. Qxh6 {is a self mate.} Qxb3+ 34. Kd2 Qd3+ 35. Ke1 Nxf3+ 36. Kf2 Rxe2+ 37. Kg3 Nh2+ 38. Kf4 Qe3+ {[%mdl 64] Skewer} 39. Kf5 Qe5#) 33... Rxh5 34. Re1 $17) (31... Rc6 $1 $19 {( -> ...Qb1+)} 32. Qxd4 (32. Nxd4 Qb1+ 33. Ke2 Ng4+) 32... Qb1+ 33. Kd2 Qxa2+ 34. Ke1 (34. Ke3 $2 Qxb3+ 35. Kf2 Qxf3+ 36. Ke1 Qxh5 $19) 34... Qxb3) 32. Qxd4 $2 {[%emt 0:00:31]} (32. Nxd4 $15 Qb1+ 33. Qc1 Qxa2 34. Re1) 32... Qd3+ $2 {[%emt 0:00:52]} ({Inferior is} 32... Rc8 33. Nc3 $15) ({Black should play} 32... Qb1+ $19 33. Kd2 Qxa2+ 34. Ke1 Kg8 35. Rfg1+ Ng6) 33. Qxd3 $11 {[%emt 0:01:30]} Nxd3 {[%emt 0:00:02]} 34. Kd2 {[%emt 0:02:21]} Rhe5 {[%emt 0:03:18] Weighted Error Value: White=0.64/Black=0.66} 1/2-1/2

[Event "DFMM-LV 2023"]
[Site "Braunfels"]
[Date "2023.06.10"]
[Round "4.11"]
[White "Braun, Kristin"]
[Black "Kostak, Tetyana"]
[Result "1-0"]
[Annotator "TA"]
[ECO "B76"]
[WhiteElo "1875"]
[BlackElo "2117"]
[PlyCount "63"]
[EventDate "2023.06.09"]
[EventType "team-tourn"]
[EventCountry "GER"]
[SourceTitle "playchess.com"]
[Source "ChessBase"]
[SourceQuality "1"]
[TimeControl "40/5400+30:1800+30"]

{[%evp 16,63,74,61,80,14,143,137,162,81,60,59,61,0,0,0,19,-115,-104,-93,-116,-108,-105,-113,-113,-122,25,24,97,102,96,95,416,412,555,552,620,621,1014,999,1223,1098,1908,1430,6514,5654,2292,2357,29997,29998]} 1. Nf3 {[%emt 0:00:10]} c5 {[%emt 0:03:43]} 2. e4 {[%emt 0:00:08]} g6 {[%emt 0:02:27]} 3. d4 {[%emt 0:00:13]} cxd4 {[%emt 0:00:38]} 4. Nxd4 {[%emt 0:00:04]} Nf6 {[%emt 0:03:40]} 5. Nc3 {[%emt 0:00:05]} d6 {[%emt 0:06:35]} 6. Be3 {[%emt 0:00:17]} Bg7 {[%emt 0:00:12]} 7. f3 {[%emt 0:00:37]} O-O {[%emt 0:00:31]} 8. Qd2 {[%emt 0:00:11]} Nc6 {[%emt 0:03:35]} 9. g4 {[%emt 0:08:14] White is more active.} Ne5 {[%emt 0:05:08] B76: Sicilian Dragon: Yugoslav Attack, 9 g4 and 9 0-0-0.} 10. h4 {[%emt 0:19:47] [#]} (10. Be2 $16) 10... Bxg4 $146 {[%emt 0:08:21]} ({Predecessor:} 10... h5 11. gxh5 Nxh5 12. Rg1 e6 13. O-O-O b5 14. Bxb5 Bd7 15. Be2 Rc8 16. f4 Nc4 17. Bxc4 Rxc4 {1-0 Yan,T (2186)-Wang,S (2075) CHN-chB (Women) 2023 (10)}) 11. fxg4 $16 {[%emt 0:00:48]} Nfxg4 {[%emt 0:00:09] White is clearly better.} 12. Be2 {[%emt 0:22:10]} (12. h5 $18) 12... Nxe3 {[%emt 0:00:50]} 13. Qxe3 {[%emt 0:00:07] Strongly threatening h5.} Qb6 $1 {[%emt 0:02:23][%cal Oe5c6] aiming for ...Nc6!} 14. Nd5 {[%emt 0:09:54]} ({White should play} 14. Kd2 $14) 14... Qxb2 $11 {[%emt 0:07:56]} 15. Kd2 {[%emt 0:07:05]} e6 {[%emt 0:17:47][%cal Og7h6] Threatens to win with ...Bh6!} 16. Rhb1 {[%emt 0:05:23] [#]} (16. Ne7+ $11 Kh8 17. Rab1 Qxa2 18. h5 gxh5 19. Qg5 Qa5+ 20. Kd1) 16... Nc4+ $1 $17 {[%emt 0:00:17][%mdl 576] Decoy} 17. Bxc4 {[%emt 0:00:20]} Qxd4+ {[%emt 0:00:07]} 18. Qxd4 {[%emt 0:00:32]} Bxd4 {[%emt 0:00:03]} 19. Ne7+ {[%emt 0:05:53]} Kg7 {[%emt 0:05:18]} 20. c3 {[%emt 0:00:04]} Bf6 {[%emt 0:02:42] Black is weak on the light squares} (20... Bb6 $17 {Hoping for ...Rae8.} 21. a4 Rfe8) 21. Rxb7 $11 {[%emt 0:00:31]} Rae8 {[%emt 0:00:10]} (21... Rfb8 $1 $11 22. Rd7 Rd8) 22. Nc6 $16 {[%emt 0:03:08]} Rc8 {[%emt 0:00:08] [#]} 23. Bb5 {[%emt 0:02:56]} Rxc6 $2 {[%emt 0:03:21][%mdl 8192] Black cannot hold the game after this.} 24. Bxc6 $18 {[%emt 0:00:32]} Rc8 {[%emt 0:00:02]} 25. Bd7 {[%emt 0:02:04]} Rc5 {[%emt 0:05:57]} 26. Rf1 {[%emt 0:04:49]} ({Worse is} 26. Rxa7 Bxc3+ 27. Ke2 Bxa1 $11) 26... Bxc3+ {[%emt 0:03:54]} 27. Kd3 {[%emt 0:01:20]} f5 {[%emt 0:10:26]} 28. Bxe6+ {[%emt 0:01:15]} Kf6 {[%emt 0:00:02]} 29. exf5 {[%emt 0:01:12]} gxf5 {[%emt 0:00:06]} 30. Bg8 {[%emt 0:02:01]} Be5 {[%emt 0:00:17]} 31. Rf7+ {[%emt 0:00:25]} Kg6 {[%emt 0:00:09]} 32. Rg1+ {[%emt 0:00:14] An entertaining game by Braun.   Weighted Error Value: White=0.36/Black=0.98} 1-0